bitfinex/quotes_ETHUSD_20251218
["timestamp","ask_amount","ask_price","bid_price","bid_amount"]
[1766037047699,9.09638364,2829.5,2828.9,3.5367]
[1766037047905,7.9450124,2829.5,2828.9,3.5367]
[1766037048812,7.0685124,2829.5,2828.9,3.5367]
[1766037048991,3.53436459,2829.4,2828.9,3.5367]
[1766037049312,0.8765,2829.3,2828.9,3.5367]
[1766037049613,0.8765,2829.3,2828.8,3.57198519]
[1766037049800,0.8765,2829.3,2828.8,4.38877911]
[1766037050825,0.8765,2829.3,2828.8,0.03528519]
[1766037051112,0.8765,2829.1,2828.8,0.03528519]
[1766037051487,0.8765,2829.0,2828.6,0.03728519]
[1766037051787,0.8765,2828.9,2828.6,0.002]
[1766037051990,0.8765,2828.8,2828.6,0.002]
[1766037052514,0.8765,2828.6,2828.3,4.13098519]
[1766037052714,7.06950706,2829.1,2828.3,4.13098519]
[1766037052916,3.5687,2828.9,2828.3,4.13098519]
[1766037053118,0.8765,2828.8,2828.3,4.13098519]
[1766037053300,3.53459607,2829.2,2828.4,3.5367]
[1766037053495,0.8765,2829.0,2828.4,3.5367]
[1766037053999,3.53480394,2829.1,2828.7,0.03528519]
[1766037054191,3.53480394,2829.1,2828.8,3.5367]
[1766037054817,4.41130394,2829.1,2828.7,0.03528519]
[1766037055014,4.41130394,2829.1,2828.7,3.57198519]
[1766037055220,4.41130394,2829.1,2828.7,3.5367]
[1766037056092,3.53459887,2829.2,2828.7,3.5367]
[1766037056290,4.41109887,2829.2,2828.7,3.5367]
[1766037056693,0.8765,2829.1,2828.7,3.5367]
[1766037057220,7.94569774,2829.2,2828.7,3.5367]
[1766037057526,0.8765,2829.1,2828.7,3.5367]
[1766037058394,0.8765,2829.1,2827.9,3.5367]
[1766037058395,0.8765,2828.7,2827.9,3.5367]
[1766037058703,0.8765,2828.5,2828.0,4.00108023]
[1766037059393,4.41197439,2828.5,2828.0,4.00108023]
[1766037059588,0.8765,2828.4,2827.8,3.5367]
[1766037059821,4.4452,2828.4,2827.8,3.5367]
[1766037060098,0.8765,2828.3,2827.8,3.5367]
[1766037060304,0.8765,2828.2,2827.8,3.5367]
[1766037060498,0.8765,2828.2,2827.8,4.30012574]
[1766037060715,3.53547439,2828.5,2827.8,4.30012574]
[1766037060920,0.8765,2828.4,2828.0,3.5367]
[1766037061526,4.41207945,2828.4,2828.0,3.5367]
[1766037062297,4.41207945,2828.4,2827.8,3.5363069]
[1766037062599,4.41207945,2828.4,2827.8,4.30008589]
[1766037063223,4.41207945,2828.4,2827.8,7.83637252]
[1766037063527,4.41207945,2828.4,2827.9,3.5367]
[1766037064028,4.41144291,2828.9,2828.0,3.5367]
[1766037064214,7.94638582,2828.9,2828.0,5.99883274]
[1766037064419,0.559,2828.8,2828.2,3.5367]
[1766037064716,7.06988582,2828.9,2828.2,4.0957]
[1766037064917,3.53494291,2828.9,2828.2,4.0957]
[1766037065526,7.06988582,2828.9,2828.2,4.0957]
[1766037065829,7.06988582,2828.9,2828.3,3.5367]
[1766037067604,3.53494291,2828.9,2828.3,3.53568465]
[1766037067811,3.53486644,2829.0,2828.4,3.5367]
[1766037068011,7.06973288,2829.0,2828.4,3.5367]
[1766037068199,3.53486644,2829.0,2828.4,4.09599849]
[1766037068400,7.06973288,2829.0,2828.4,4.09599849]
[1766037069134,3.53486644,2829.0,2828.4,4.09599849]
[1766037070433,7.94623288,2829.0,2828.4,4.09599849]
[1766037070619,0.8765,2828.9,2828.2,2.05628491]
[1766037070802,0.8765,2828.9,2828.3,3.5367]
[1766037071003,0.8765,2828.9,2828.2,0.559]
[1766037071004,3.2536,2828.6,2828.2,0.559]
[1766037071218,0.7861,2828.5,2828.2,0.559]
[1766037071729,4.0397,2828.4,2828.1,0.002]
[1766037071934,0.7861,2828.3,2828.1,0.002]
[1766037072138,0.7861,2828.3,2827.7,4.0716]
[1766037072441,4.33181783,2828.2,2827.7,4.0716]
[1766037072813,1.26038023,2828.7,2827.8,2.6267]
[1766037073242,3.3843,2828.6,2827.8,2.6267]
[1766037073539,0.796,2828.5,2827.9,3.2990143]
[1766037074240,0.796,2828.5,2827.9,0.6723143]
[1766037074448,3.53545466,2828.5,2828.0,2.6294]
[1766037075033,3.53537707,2828.6,2828.1,2.6321]
[1766037075635,4.33137707,2828.6,2828.1,2.6321]
[1766037075814,7.71567707,2828.6,2828.2,0.26321]
[1766037076421,4.33137707,2828.6,2828.2,0.26321]
[1766037076631,3.53537707,2828.6,2828.2,2.6373]
[1766037078221,4.33137707,2828.6,2828.2,2.6373]
[1766037078453,3.53537707,2828.6,2828.2,2.6373]
[1766037080630,4.1803,2828.8,2828.2,2.6373]
[1766037080829,4.09506787,2828.8,2828.2,2.6373]
[1766037081052,4.09506787,2828.8,2828.4,2.6473]
[1766037081770,4.89106787,2828.8,2828.4,2.6473]
[1766037082427,4.33106787,2828.8,2828.4,2.6473]
[1766037082629,3.53506787,2828.8,2828.4,2.6473]
[1766037082835,3.53458515,2829.2,2828.4,2.6513]
[1766037083140,7.6291703,2829.2,2828.6,2.6513]
[1766037083948,8.4251703,2829.2,2828.6,2.6513]
[1766037084737,11.8094703,2829.2,2828.6,2.6513]
[1766037086851,0.796,2829.1,2828.6,2.6513]
[1766037087052,4.1803,2829.1,2828.6,2.6513]
[1766037087234,4.1803,2829.1,2828.6,3.3980148]
[1766037087870,3.53481795,2829.0,2828.7,2.663]
[1766037088456,7.8656359,2829.0,2828.4,2.663]
[1766037088662,11.2499359,2829.0,2828.4,2.663]
[1766037089040,7.71511795,2829.0,2828.4,2.663]
[1766037089358,4.33081795,2829.0,2828.6,2.6653]
[1766037090763,3.53481795,2829.0,2828.6,2.6653]
[1766037092168,7.07040456,2829.1,2828.6,2.6653]
[1766037092344,0.796,2829.0,2828.6,2.6653]
[1766037092758,4.1803,2829.0,2828.6,2.6653]
[1766037092952,4.33170228,2829.1,2828.6,2.6653]
[1766037093740,0.001,2829.1,2828.6,3.28536411]
[1766037093941,0.001,2829.1,2828.7,2.6754]
[1766037094136,4.1813,2829.3,2828.7,2.6744]
[1766037094137,0.001,2829.3,2828.7,2.6744]
[1766037095447,3.53424446,2829.5,2828.7,2.6744]
[1766037096149,4.33005131,2829.7,2828.9,7.06988582]
[1766037096356,0.796,2829.9,2829.3,2.6762]
[1766037096574,0.796,2829.9,2829.5,2.6776]
[1766037096575,3.53372153,2829.9,2829.5,2.6776]
[1766037096944,7.71402153,2829.9,2829.5,2.6776]
[1766037097144,7.71402153,2829.9,2829.1,2.6776]
[1766037097339,0.001,2829.3,2829.1,2.6776]
[1766037097548,0.001,2829.3,2829.2,2.94888852]
[1766037097753,0.796,2829.9,2829.2,0.27128852]
[1766037097980,3.53448093,2830.1,2829.3,2.6789]
[1766037098284,7.06796186,2830.1,2829.4,2.6789]
[1766037098474,3.53448093,2830.1,2829.4,2.6789]
[1766037098652,7.06796186,2830.1,2829.4,2.6789]
[1766037099168,0.001,2830.1,2829.4,2.6789]
[1766037099359,0.001,2830.1,2829.6,2.6802]
[1766037099956,0.797,2830.1,2829.6,2.6802]
[1766037100158,0.001,2830.1,2829.6,2.6802]
[1766037100351,0.001,2830.1,2829.6,3.53399733]
[1766037100546,0.001,2830.1,2829.7,2.6815]
[1766037100754,3.53430423,2830.3,2829.9,2.6818]
[1766037101077,4.33030423,2830.3,2829.9,2.6818]
[1766037101649,0.796,2830.2,2829.8,0.62154973]
[1766037101849,0.796,2830.2,2829.8,3.30464973]
[1766037102263,4.0237,2830.2,2829.8,3.30464973]
[1766037102879,3.2277,2829.8,2829.1,6.68457044]
[1766037103189,0.9157,2829.7,2829.1,6.22019021]
[1766037103384,0.9157,2829.7,2829.1,6.22023648]
[1766037103385,4.1434,2829.7,2829.1,6.22023648]
[1766037104289,7.67737004,2829.7,2829.1,6.22023648]
[1766037104490,7.67737004,2829.7,2829.1,6.90178865]
[1766037104991,0.9157,2829.6,2829.1,3.53463648]
[1766037105193,0.9157,2829.6,2829.1,6.22273648]
[1766037105391,0.9157,2829.6,2829.0,3.57004765]
[1766037105594,0.9157,2829.6,2829.0,6.25814765]
[1766037105764,0.9157,2829.5,2828.9,0.56]
[1766037105959,0.9157,2829.3,2828.6,0.59628519]
[1766037106159,4.1434,2829.3,2828.7,3.53512458]
[1766037106384,4.1434,2829.3,2828.7,6.22442458]
[1766037106685,4.1434,2829.3,2828.8,2.6905]
[1766037108584,4.1434,2829.3,2828.8,6.22556226]
[1766037108790,0.9157,2829.2,2828.6,3.2538]
[1766037108966,0.9157,2829.2,2828.7,2.6928]
[1766037109292,0.9157,2829.2,2828.6,0.88990852]
[1766037109586,4.1434,2829.2,2828.6,0.561]
[1766037109803,0.9157,2829.1,2828.6,3.2549]
[1766037109981,0.9157,2829.0,2828.6,3.2549]
[1766037110898,4.1434,2829.0,2828.6,0.561]
[1766037111093,3.2277,2829.0,2828.6,0.002]
[1766037111294,0.9157,2828.9,2828.6,0.002]
[1766037111805,4.1434,2829.0,2828.6,3.53731457]
[1766037111980,4.1434,2829.0,2828.6,0.002]
[1766037112380,4.7024,2829.2,2828.6,7.25685264]
[1766037112700,4.7024,2829.2,2828.6,10.79217046]
[1766037113080,4.7024,2829.2,2828.6,8.09597046]
[1766037113281,4.7024,2829.2,2828.7,2.6974]
[1766037114275,0.559,2829.2,2828.7,2.6974]
[1766037114482,0.56,2829.3,2828.9,2.6985]
[1766037115410,4.09446218,2829.3,2828.9,2.6985]
[1766037115711,0.56,2829.3,2828.9,2.6985]
[1766037115934,0.56,2829.3,2828.6,3.5372879]
[1766037115935,3.53544314,2829.3,2828.6,3.5372879]
[1766037116110,0.9157,2828.9,2828.6,0.002]
[1766037116514,4.1434,2829.0,2828.6,0.002]
[1766037116690,0.9157,2829.0,2828.6,3.4304]
[1766037116887,0.9157,2829.1,2828.6,3.4304]
[1766037117181,0.9157,2829.1,2828.6,3.77364]
[1766037117387,4.1434,2829.1,2828.6,3.77364]
[1766037117614,4.1434,2829.1,2828.6,7.30893305]
[1766037118183,4.1434,2829.1,2828.6,3.77364]
[1766037119109,0.9157,2829.1,2828.6,3.88054513]
[1766037119301,4.1444,2829.3,2828.7,3.809664]
[1766037119698,8.23886669,2829.3,2828.7,3.809664]
[1766037120713,0.9167,2829.3,2828.7,3.809664]
[1766037120913,4.45116045,2829.3,2828.7,3.809664]
[1766037121092,4.45116045,2829.3,2828.7,0.377564]
[1766037121412,11.2133209,2829.3,2828.7,0.377564]
[1766037121712,0.9157,2829.2,2828.6,3.78104]
[1766037121888,0.9157,2829.0,2828.6,0.002]
[1766037122090,0.9157,2829.2,2828.6,0.002]
[1766037122487,7.0699209,2829.3,2828.6,0.002]
[1766037122488,0.9157,2828.9,2828.6,0.002]
[1766037122687,0.9157,2828.6,2828.5,0.002]
[1766037122983,0.9157,2828.6,2828.1,7.01254483]
[1766037122984,0.9157,2828.4,2828.1,0.002]
[1766037123194,4.1434,2828.5,2828.1,0.002]
[1766037125507,3.2277,2828.4,2828.1,0.002]
[1766037125712,4.1434,2828.3,2828.1,0.002]
[1766037125915,0.9157,2828.3,2828.1,0.002]
[1766037127227,0.9157,2828.2,2828.1,0.002]
[1766037128723,4.09494291,2828.9,2828.1,3.4536]
[1766037128920,10.85760792,2828.9,2828.1,3.4536]
[1766037129093,0.9157,2828.8,2828.1,3.4536]
[1766037129297,4.1434,2828.8,2828.1,3.4536]
[1766037130023,7.67851323,2828.8,2828.1,6.99112486]
[1766037131022,0.9157,2828.7,2828.1,6.99112486]
[1766037131322,4.4689,2828.7,2828.1,6.99112486]
[1766037131905,8.00421038,2828.7,2828.1,3.4553]
[1766037132529,8.00421038,2828.7,2828.1,6.99122558]
[1766037133027,4.45101038,2828.7,2828.1,3.4553]
[1766037133199,0.9157,2828.7,2828.2,3.4332]
[1766037133709,4.2175,2828.7,2828.2,3.4332]
[1766037133912,7.75274024,2828.7,2828.2,3.4332]
[1766037134231,7.75274024,2828.7,2828.2,3.53578645]
[1766037134232,4.2175,2828.7,2828.2,3.53578645]
[1766037134399,4.98583004,2828.9,2828.3,3.4332]
[1766037134744,8.28763004,2828.9,2828.3,3.4332]
[1766037134899,10.93189279,2828.9,2828.3,3.4332]
[1766037135221,3.3018,2828.8,2828.3,3.4332]
[1766037135421,0.8908,2828.7,2828.3,3.4332]
[1766037135624,4.1926,2828.6,2828.1,3.53790522]
[1766037135807,4.1926,2828.6,2828.1,8.02203105]
[1766037136008,4.1926,2828.5,2828.1,4.48612583]
[1766037136526,7.72806312,2828.5,2828.1,1.05292583]
[1766037136728,0.8908,2828.5,2828.1,3.4352]
[1766037136936,3.53523461,2828.7,2828.1,6.9711301]
[1766037137106,4.42603461,2828.7,2828.1,6.9711301]
[1766037137306,0.8908,2828.6,2828.1,3.4352]
[1766037137508,0.8908,2828.5,2828.1,3.4352]
[1766037137911,0.8908,2828.5,2828.1,0.002]
[1766037138130,4.1926,2828.4,2828.1,0.002]
[1766037138330,4.1926,2828.3,2828.1,0.002]
[1766037138717,0.8908,2828.3,2828.1,0.002]
[1766037138916,6.83733071,2828.5,2828.1,0.002]
[1766037139123,0.8908,2828.4,2828.1,0.002]
[1766037139905,3.53515216,2828.8,2828.1,0.002]
[1766037140123,0.56,2828.7,2828.1,3.4352]
[1766037140311,0.56,2828.7,2828.2,0.34372]
[1766037140637,0.8908,2828.6,2828.2,3.4332]
[1766037140820,8.28782617,2828.7,2828.2,3.4332]
[1766037141930,8.28782617,2828.7,2828.1,0.002]
[1766037141931,4.1926,2828.6,2828.1,0.002]
[1766037142240,4.1926,2828.6,2828.1,6.97104916]
[1766037142438,4.09522869,2828.7,2828.2,3.4332]
[1766037142748,0.8908,2828.7,2828.3,3.4332]
[1766037143142,4.42599821,2828.7,2828.3,3.4332]
[1766037143637,3.53519821,2828.7,2828.3,3.4332]
[1766037143836,3.53519821,2828.7,2828.1,0.002]
[1766037144012,3.53519821,2828.7,2828.2,3.4332]
[1766037144213,4.98588898,2828.8,2828.2,3.4332]
[1766037144743,0.001,2828.7,2828.2,3.4332]
[1766037144928,0.8918,2828.7,2828.2,3.4332]
[1766037145335,0.8918,2828.7,2828.3,3.4332]
[1766037145840,0.001,2828.7,2828.3,3.4332]
[1766037146411,0.001,2829.3,2828.7,3.4332]
[1766037146616,3.53417056,2829.6,2828.9,3.4332]
[1766037146939,4.42497056,2829.6,2829.0,3.4332]
[1766037147136,7.72677056,2829.6,2829.0,3.4332]
[1766037147344,8.28677056,2829.6,2829.0,3.4332]
[1766037147529,0.8908,2829.5,2829.0,3.4332]
[1766037147733,0.8908,2829.4,2828.8,3.53501866]
[1766037147918,0.8908,2829.4,2828.8,4.24204917]
[1766037148125,0.8908,2829.4,2828.8,7.67524917]
[1766037148624,3.3018,2829.3,2828.8,4.14023051]
[1766037148950,0.8908,2829.2,2828.8,4.14023051]
[1766037149149,0.8908,2829.1,2828.3,0.73238615]
[1766037149348,0.8908,2828.8,2828.4,3.4332]
[1766037149523,3.3018,2828.9,2828.5,3.53543601]
[1766037149719,0.8908,2828.9,2828.5,6.96863601]
[1766037151366,0.8908,2828.9,2828.5,3.4332]
[1766037151527,4.1926,2828.9,2828.4,6.96872022]
[1766037152348,0.8908,2828.8,2828.4,6.96872022]
[1766037152728,0.8908,2828.8,2828.4,8.07870238]
[1766037153459,0.8908,2828.6,2828.4,3.53552022]
[1766037153631,4.1926,2828.8,2828.4,3.53552022]
[1766037154361,4.1926,2828.8,2828.4,6.96872022]
[1766037154562,0.001,2828.9,2828.4,3.53552022]
[1766037154797,0.001,2828.9,2828.5,3.4332]
[1766037155935,4.1926,2829.5,2828.8,6.01101939]
[1766037156152,4.1926,2829.5,2828.7,0.03528519]
[1766037156349,4.09394352,2829.7,2828.7,0.03528519]
[1766037156559,3.3018,2829.5,2828.7,0.03528519]
[1766037156730,3.3018,2829.1,2828.7,0.03528519]
[1766037156929,0.8908,2829.3,2828.6,3.53531782]
[1766037157127,4.1926,2829.1,2828.6,3.53531782]
[1766037157571,4.1926,2829.1,2828.6,7.07063564]
[1766037157745,4.1926,2829.1,2828.6,3.53531782]
[1766037157933,4.1926,2829.1,2828.7,0.87199918]
[1766037158136,4.1926,2829.1,2828.7,4.40717003]
[1766037160073,4.1936,2829.1,2828.7,4.40717003]
[1766037160483,4.1936,2829.1,2828.7,0.87199918]
[1766037160774,0.001,2829.1,2828.7,0.87199918]
[1766037160985,4.1926,2829.0,2828.7,0.87199918]
[1766037162293,4.1926,2829.0,2828.7,4.40715718]
[1766037162777,0.8908,2829.0,2828.7,4.40715718]
[1766037162976,4.4172,2829.1,2828.7,0.87199918]
[1766037164578,4.4172,2829.1,2828.7,4.40718885]
[1766037165277,4.4172,2829.1,2828.7,0.87199918]
[1766037165454,4.4162,2829.0,2828.7,0.87199918]
[1766037165873,4.4172,2829.1,2828.7,4.40719118]
[1766037168579,4.4172,2829.1,2828.7,0.87199918]
[1766037169180,4.4172,2829.1,2828.7,4.40716176]
[1766037173161,4.9762,2829.7,2829.0,6.00827669]
[1766037173463,3.4104,2829.6,2829.0,6.00827669]
[1766037173678,4.4162,2829.6,2828.8,6.48427806]
[1766037173880,4.4162,2829.5,2828.9,1.44265409]
[1766037174990,1.0058,2829.5,2829.0,3.53481795]
[1766037175313,4.4162,2829.5,2829.0,3.53481795]
[1766037175679,0.001,2829.9,2829.0,7.0696359]
[1766037175882,0.001,2829.9,2829.1,6.91550569]
[1766037175883,3.53381864,2829.8,2829.1,6.91550569]
[1766037176080,4.4162,2829.7,2829.1,6.91550569]
[1766037176497,7.95095396,2829.9,2829.1,6.91550569]
[1766037177003,0.001,2829.9,2829.3,6.00827669]
[1766037177300,0.001,2829.9,2829.4,1.30774128]
[1766037178181,4.4172,2829.9,2829.4,1.30774128]
[1766037178377,0.001,2829.9,2829.4,1.30774128]
[1766037178675,0.001,2829.9,2829.5,6.04356188]
[1766037178875,3.4114,2829.9,2829.5,0.03528519]
[1766037179080,4.4162,2829.8,2829.4,1.30774128]
[1766037179293,4.4162,2829.8,2829.3,0.59528519]
[1766037179493,4.4162,2829.8,2829.3,4.12972689]
[1766037181001,3.53476676,2829.9,2829.3,0.59528519]
[1766037181217,6.56827669,2829.8,2828.7,3.57040149]
[1766037181512,3.4104,2829.1,2828.7,0.03528519]
[1766037181711,4.4162,2829.1,2828.7,0.03528519]
[1766037182209,4.4162,2829.1,2828.5,0.562]
[1766037182391,4.4162,2828.9,2828.5,0.002]
[1766037182592,0.56,2829.0,2828.3,3.57095627]
[1766037182593,1.0058,2828.6,2828.3,3.57095627]
[1766037182802,4.4162,2828.8,2828.4,0.71067662]
[1766037182987,4.4162,2828.8,2828.4,4.24617586]
[1766037184210,4.4162,2828.8,2828.4,0.71067662]
[1766037184410,0.56,2829.0,2828.6,0.002]
[1766037184607,1.0058,2828.7,2828.1,0.03728519]
[1766037184913,1.0058,2828.6,2828.2,3.53569707]
[1766037185080,1.0058,2828.6,2828.1,3.57321448]
[1766037185495,1.0058,2828.6,2828.1,7.10915733]
[1766037185693,1.0058,2828.6,2828.2,0.71111573]
[1766037187422,0.56,2829.0,2828.1,0.03728519]
[1766037187423,1.0058,2828.8,2828.1,0.03728519]
[1766037187708,3.53494291,2828.9,2828.1,0.03728519]
[1766037187709,7.06988582,2828.9,2828.1,0.03728519]
[1766037188087,7.06988582,2828.9,2828.1,3.57317724]
[1766037188289,7.06988582,2828.9,2828.1,0.03728519]
[1766037188510,1.0058,2828.8,2828.1,0.03728519]
[1766037188712,7.06988582,2828.9,2828.1,0.03728519]
[1766037188912,1.0058,2828.6,2828.1,0.03728519]
[1766037189120,4.4162,2828.4,2828.1,0.03728519]
[1766037190116,1.0058,2828.4,2828.1,0.03728519]
[1766037190417,4.4162,2828.3,2828.1,0.03728519]
[1766037191616,0.56,2829.0,2828.1,3.57319481]
[1766037191812,3.6426,2828.6,2828.1,3.57319481]
[1766037192014,4.3632,2828.5,2828.1,3.57319481]
[1766037192394,7.72671349,2828.9,2828.1,3.57319481]
[1766037192592,3.429,2828.8,2828.1,3.57319481]
[1766037192799,4.3632,2828.7,2828.1,3.57319481]
[1766037193115,4.9232,2828.7,2828.1,8.48061856]
[1766037193493,4.9232,2828.7,2828.1,4.94467571]
[1766037195198,0.001,2829.2,2828.5,6.00827669]
[1766037195199,0.9342,2829.1,2828.5,6.00827669]
[1766037195515,0.9342,2828.8,2828.4,0.03528519]
[1766037195835,3.429,2828.6,2828.3,0.56]
[1766037196138,0.56,2829.0,2828.3,0.56]
[1766037196504,0.56,2829.0,2828.1,3.57319481]
[1766037196698,4.3632,2828.9,2828.1,3.57319481]
[1766037196902,0.56,2829.0,2828.1,4.94466846]
[1766037197103,3.5351036,2828.8,2828.1,0.03728519]
[1766037197445,4.3632,2828.4,2828.1,3.57319241]
[1766037197948,7.0702072,2828.8,2828.1,0.03728519]
[1766037198248,0.9342,2828.6,2828.1,3.57322055]
[1766037198539,0.9342,2828.7,2828.3,0.03528519]
[1766037198736,4.3632,2828.7,2828.3,0.03528519]
[1766037199127,3.99998652,2829.2,2828.5,0.03528519]
[1766037199128,0.56,2828.9,2828.5,0.03528519]
[1766037199328,9.30395245,2828.9,2828.3,0.03528519]
[1766037199637,4.3632,2828.7,2828.4,3.53553053]
[1766037199932,4.3632,2828.8,2828.4,3.53553053]
[1766037200114,4.3632,2828.8,2828.3,3.57092739]
[1766037200313,4.3632,2828.8,2828.4,3.53556369]
[1766037201433,4.3632,2828.8,2828.5,0.03528519]
[1766037201633,4.3642,2828.8,2828.5,0.03528519]
[1766037201931,0.001,2828.8,2828.4,13.07940819]
[1766037202119,0.46438023,2829.1,2828.5,0.3958986]
[1766037202329,4.3632,2828.9,2828.5,0.3958986]
[1766037202708,0.46438023,2829.1,2828.5,0.3958986]
[1766037202908,3.429,2829.0,2828.5,0.3958986]
[1766037203237,4.3632,2828.9,2828.5,0.3958986]
[1766037203933,8.36232324,2829.1,2828.5,0.3958986]
[1766037204101,8.36232324,2829.1,2828.5,3.93133075]
[1766037204306,8.36232324,2829.1,2828.5,0.36061341]
[1766037204638,4.3632,2829.0,2828.5,0.36061341]
[1766037205005,3.99912324,2829.1,2828.5,0.36061341]
[1766037205209,4.3632,2829.0,2828.4,3.53548459]
[1766037206012,4.3632,2829.0,2828.3,7.07138562]
[1766037207637,0.001,2829.2,2828.3,13.08037579]
[1766037207837,0.561,2829.2,2828.3,13.08037579]
[1766037208041,0.001,2829.2,2828.5,7.07088562]
[1766037208335,0.001,2829.2,2828.6,6.77207873]
[1766037208549,0.001,2829.2,2828.6,0.76308856]
[1766037209223,4.3642,2829.2,2828.6,0.76308856]
[1766037210131,4.3642,2829.2,2828.7,3.53519284]
[1766037210322,0.001,2829.0,2828.7,3.53519284]
[1766037210523,0.001,2829.0,2828.8,0.42982814]
[1766037213442,3.43,2829.0,2828.6,4.29835477]
[1766037213617,4.3632,2828.9,2828.6,4.29835477]
[1766037213819,4.3632,2828.9,2828.6,0.76308856]
[1766037214541,3.429,2828.9,2828.6,0.76308856]
[1766037214882,4.3632,2828.7,2828.3,0.002]
[1766037215219,4.3632,2828.7,2828.3,3.53765817]
[1766037216550,4.3632,2828.7,2828.3,0.002]
[1766037219147,0.001,2828.8,2828.3,0.002]
[1766037219353,4.3642,2828.8,2828.3,0.002]
[1766037219647,4.3632,2828.7,2828.3,0.002]
[1766037220849,0.001,2828.8,2828.3,0.76558281]
[1766037221534,4.3642,2828.8,2828.3,0.76558281]
[1766037222460,4.3642,2828.8,2828.3,4.3011815]
[1766037224538,4.4036,2828.7,2828.3,0.002]
[1766037227731,0.001,2828.8,2828.3,0.002]
[1766037227927,4.4036,2828.7,2828.3,0.002]
[1766037228128,0.001,2828.8,2828.3,0.002]
[1766037229556,4.4046,2828.8,2828.3,0.002]
[1766037231842,4.4036,2829.1,2828.3,0.76557409]
[1766037232460,4.4036,2829.1,2828.4,3.53556781]
[1766037232765,4.4036,2829.1,2828.4,7.07113562]
[1766037232966,4.4036,2829.1,2828.5,0.78367097]
[1766037234347,0.001,2828.8,2828.5,0.78367097]
[1766037235582,0.001,2829.2,2828.6,3.53531782]
[1766037236055,3.53557733,2829.2,2828.6,3.53531782]
[1766037236250,0.001,2829.2,2828.6,3.53531782]
[1766037236555,3.53556932,2829.2,2828.6,4.38028902]
[1766037236954,3.471,2829.1,2828.6,0.8449712]
[1766037237154,0.9326,2829.0,2828.5,0.56]
[1766037237374,4.4036,2828.9,2828.5,0.56]
[1766037237747,4.4036,2828.9,2828.5,4.09543759]
[1766037237957,0.9326,2828.9,2828.3,0.002]
[1766037238159,0.9326,2828.8,2828.3,0.002]
[1766037238365,4.4036,2828.8,2828.3,0.002]
[1766037238673,0.56,2829.0,2828.3,0.002]
[1766037238874,0.76295099,2828.9,2828.3,0.002]
[1766037239170,4.4036,2828.7,2828.3,0.002]
[1766037239766,3.471,2828.7,2828.3,0.002]
[1766037239973,0.9326,2828.6,2828.3,0.002]
[1766037240174,3.471,2828.5,2828.3,0.002]
[1766037240476,4.4036,2828.3,2828.1,0.002]
[1766037241562,0.9326,2828.4,2828.1,0.002]
[1766037241776,3.8181,2828.5,2828.1,0.002]
[1766037241777,4.4036,2828.5,2828.1,0.002]
[1766037242152,4.46791782,2828.6,2828.1,0.002]
[1766037242471,0.56,2828.6,2828.1,0.002]
[1766037242673,4.9636,2828.6,2828.1,0.002]
[1766037242862,3.53509683,2828.8,2828.1,0.002]
[1766037243072,0.56,2828.8,2828.2,0.60476163]
[1766037244590,0.56,2828.8,2828.2,4.14054084]
[1766037245980,4.09509265,2828.8,2828.2,4.14054084]
[1766037246175,0.9326,2828.5,2828.1,0.03728519]
[1766037246379,3.471,2828.7,2828.1,3.57316203]
[1766037246683,5.02769265,2828.8,2828.1,3.57316203]
[1766037247054,1.4926,2828.8,2828.1,3.57316203]
[1766037247256,1.4926,2828.8,2828.2,0.71111954]
[1766037248158,0.56,2828.8,2828.2,0.71111954]
[1766037248358,0.56,2828.8,2828.3,0.03528519]
[1766037248666,0.9336,2829.0,2828.5,0.03528519]
[1766037248871,0.561,2829.0,2828.5,0.03528519]
[1766037249072,0.001,2829.0,2828.5,0.99673273]
[1766037249271,4.0947358,2829.1,2828.5,0.99673273]
[1766037249696,0.001,2829.2,2828.5,0.99673273]
[1766037249909,0.56,2829.1,2828.5,0.99673273]
[1766037250569,0.001,2829.0,2828.5,0.99673273]
[1766037250768,3.53396123,2829.7,2828.7,0.03528519]
[1766037250970,4.7631,2829.6,2828.8,0.71059208]
[1766037252984,4.7631,2829.6,2828.9,3.53494291]
[1766037253165,4.7631,2829.6,2828.9,7.06988582]
[1766037253370,8.29717188,2829.6,2828.9,3.53494291]
[1766037253611,8.29717188,2829.6,2829.0,0.03528519]
[1766037253906,8.29717188,2829.6,2829.1,0.35702281]
[1766037254786,3.7871,2829.5,2829.1,0.35702281]
[1766037254989,4.776,2829.5,2829.1,0.35702281]
[1766037255187,4.776,2829.5,2829.0,0.03528519]
[1766037255188,8.31021926,2829.5,2829.0,0.03528519]
[1766037256089,4.776,2829.5,2829.0,0.03528519]
[1766037256983,8.31021441,2829.5,2829.0,0.03528519]
[1766037257395,4.776,2829.4,2829.0,0.03528519]
[1766037258783,0.001,2829.5,2829.0,3.57009629]
[1766037259011,0.001,2829.5,2829.0,4.35167111]
[1766037259989,3.53523359,2829.5,2829.0,0.81686001]
[1766037260317,3.53523359,2829.5,2829.0,0.03528519]
[1766037261108,3.7871,2829.4,2829.0,0.03528519]
[1766037261313,4.776,2829.3,2829.0,0.03528519]
[1766037262595,4.776,2829.1,2828.5,3.53535427]
[1766037262795,5.3096,2829.1,2828.5,3.53535427]
[1766037263115,8.31069701,2829.1,2828.4,3.53556781]
[1766037263306,8.31069701,2829.1,2828.5,0.03528519]
[1766037264930,4.776,2829.1,2828.5,0.03528519]
[1766037265492,8.31075338,2829.1,2828.5,0.03528519]
[1766037265701,8.31075338,2829.1,2828.5,3.57070295]
[1766037266021,8.31175338,2829.1,2828.5,3.57070295]
[1766037266526,4.777,2829.1,2828.5,3.57070295]
[1766037267805,8.3116933,2829.1,2828.5,3.57070295]
[1766037268994,8.31100418,2829.1,2828.3,0.03728519]
[1766037269232,8.31100418,2829.1,2828.5,0.03528519]
[1766037269400,4.776,2829.0,2828.5,0.03528519]
[1766037269595,8.31100418,2829.1,2828.5,0.03528519]
[1766037269938,4.776,2828.8,2828.5,0.03528519]